bitfinex/quotes_SOLUSD_20251216
["timestamp","ask_amount","ask_price","bid_price","bid_amount"]
[1765854765341,0.69,126.31,126.3,8.68]
[1765854765563,5.21152335,126.31,126.3,8.68]
[1765854766135,4.52152335,126.32,126.3,8.68]
[1765854766334,4.52152335,126.34,126.3,9.0]
[1765854766681,0.69,126.34,126.3,16.59744033]
[1765854766982,4.52152335,126.35,126.31,0.32]
[1765854767130,8.60410582,126.36,126.3,16.59744033]
[1765854767131,7.91410582,126.36,126.3,16.59744033]
[1765854767335,5.21152335,126.34,126.3,16.91744033]
[1765854767535,5.21152335,126.34,126.31,8.68]
[1765854767937,7.91577614,126.33,126.31,8.68]
[1765854768143,5.21152335,126.34,126.31,8.68]
[1765854768144,0.69,126.34,126.31,8.68]
[1765854768350,5.21152335,126.34,126.31,9.0]
[1765854768663,5.21152335,126.34,126.31,8.68]
[1765854768664,0.69,126.33,126.31,8.68]
[1765854769067,13.12691803,126.34,126.31,8.68]
[1765854769559,0.69,126.33,126.31,8.68]
[1765854769754,13.12691803,126.34,126.31,16.59697534]
[1765854770266,5.21152335,126.33,126.31,8.68]
[1765854770561,4.52152335,126.32,126.3,8.68]
[1765854770765,5.21152335,126.32,126.3,8.68]
[1765854771141,4.52152335,126.33,126.3,16.59758154]
[1765854771347,4.52152335,126.31,126.27,0.32]
[1765854771548,4.52152335,126.31,126.27,16.59912137]
[1765854771745,0.69,126.3,126.27,16.59912137]
[1765854771945,0.69,126.3,126.27,16.91912137]
[1765854772471,5.21152335,126.31,126.27,16.91912137]
[1765854772644,27.70083101,126.35,126.28,0.32]
[1765854772841,4.52152335,126.32,126.28,0.32]
[1765854773144,4.52152335,126.32,126.29,7.91790553]
[1765854773355,4.52152335,126.32,126.3,8.68]
[1765854773755,13.12804665,126.32,126.3,8.68]
[1765854774244,5.21152335,126.31,126.3,8.68]
[1765854775259,13.12855288,126.31,126.3,8.68]
[1765854776651,8.60702953,126.31,126.3,8.68]
[1765854776853,13.12855288,126.31,126.3,8.68]
[1765854777674,8.60702953,126.31,126.3,8.68]
[1765854777976,12.43819655,126.32,126.3,8.68]
[1765854778349,5.21152335,126.31,126.3,8.68]
[1765854778962,0.69,126.31,126.3,8.68]
[1765854779474,12.43819655,126.32,126.3,8.68]
[1765854779658,13.12819655,126.32,126.3,8.68]
[1765854779971,12.43819655,126.32,126.3,8.68]
[1765854780179,8.6066732,126.32,126.3,8.68]
[1765854780476,4.52152335,126.31,126.3,8.68]
[1765854780655,5.21152335,126.31,126.3,8.68]
[1765854780857,5.21152335,126.31,126.27,7.91928911]
[1765854781052,13.0470912,126.27,126.2,19.80947455]
[1765854781282,13.0470912,126.27,126.21,16.6030793]
[1765854781283,7.92016473,126.26,126.21,16.6030793]
[1765854781576,8.61016473,126.26,126.21,16.9230793]
[1765854781873,5.21152335,126.25,126.21,16.9230793]
[1765854782266,4.52152335,126.24,126.21,16.9230793]
[1765854783086,5.21152335,126.23,126.21,8.68]
[1765854783452,4.52152335,126.23,126.21,8.68]
[1765854784356,8.61162331,126.24,126.21,8.68]
[1765854784751,12.44250129,126.25,126.21,16.60314271]
[1765854785082,12.44250129,126.25,126.21,16.92314271]
[1765854785083,5.21697801,126.25,126.21,16.92314271]
[1765854785984,4.52697801,126.24,126.21,16.92314271]
[1765854786168,4.52697801,126.23,126.21,8.68]
[1765854786380,5.21697801,126.23,126.21,8.68]
[1765854786686,4.52697801,126.23,126.21,8.68]
[1765854788679,8.61159555,126.24,126.21,8.68]
[1765854788680,5.21697801,126.22,126.21,8.68]
[1765854788863,5.21697801,126.22,126.19,7.92435008]
[1765854788864,5.21697801,126.22,126.17,0.1]
[1765854789068,13.7370912,126.21,126.17,0.1]
[1765854789572,8.80994492,126.19,126.17,0.1]
[1765854789787,9.74395602,126.18,126.17,0.1]
[1765854790105,17.66914226,126.18,126.17,0.1]
[1765854790295,17.42513116,126.18,126.17,0.1]
[1765854790594,13.14216425,126.18,126.17,0.1]
[1765854790799,0.69,126.18,126.17,0.1]
[1765854790972,13.0470912,126.21,126.17,0.42]
[1765854790973,4.52697801,126.21,126.17,0.42]
[1765854791286,39.58476289,126.32,126.17,0.1]
[1765854791287,0.69,126.2,126.17,0.1]
[1765854791461,13.30967131,126.2,126.17,0.1]
[1765854792273,12.61967131,126.19,126.17,0.1]
[1765854792625,13.30967131,126.2,126.17,0.1]
[1765854793173,12.61967131,126.21,126.17,0.42]
[1765854793473,12.61967131,126.22,126.17,0.42]
[1765854793680,13.30967131,126.21,126.17,0.42]
[1765854794079,13.30967131,126.21,126.17,8.34535296]
[1765854794980,0.69,126.23,126.18,0.32]
[1765854795181,12.61967131,126.22,126.19,8.68]
[1765854795399,8.61100886,126.25,126.19,8.68]
[1765854795597,0.69,126.24,126.19,8.68]
[1765854795898,12.61967131,126.23,126.19,8.68]
[1765854796069,12.61967131,126.23,126.2,7.92393026]
[1765854796585,13.30967131,126.24,126.2,8.24393026]
[1765854798498,12.61967131,126.25,126.21,0.32]
[1765854798900,13.30967131,126.25,126.21,0.32]
[1765854799273,40.76665176,126.27,126.21,0.32]
[1765854799274,12.61967131,126.26,126.21,0.32]
[1765854799589,7.75924779,126.26,126.21,0.32]
[1765854799782,8.44924779,126.26,126.21,0.32]
[1765854800370,8.44924779,126.26,126.22,7.92267469]
[1765854800575,8.44924779,126.26,126.23,8.68]
[1765854800772,7.92029976,126.26,126.23,8.68]
[1765854801091,7.75924779,126.24,126.23,8.68]
[1765854801274,8.44924779,126.25,126.23,8.68]
[1765854801475,7.75924779,126.25,126.23,8.68]
[1765854801785,8.44924779,126.25,126.23,8.68]
[1765854802401,0.69,126.25,126.23,8.68]
[1765854802567,8.44924779,126.25,126.23,8.68]
[1765854804082,16.37004273,126.25,126.23,8.68]
[1765854806809,8.61079494,126.25,126.23,8.68]
[1765854807291,16.37004273,126.25,126.23,8.68]
[1765854807800,19.79650535,126.29,126.23,8.68]
[1765854808014,7.75924779,126.28,126.24,0.32]
[1765854808225,19.79343468,126.31,126.24,0.32]
[1765854808514,0.69,126.31,126.25,7.75924779]
[1765854808803,0.69,126.31,126.26,8.68]
[1765854809009,8.44924779,126.31,126.26,9.0]
[1765854809210,16.36649231,126.31,126.27,8.23953749]
[1765854809718,8.44924779,126.3,126.26,16.91989768]
[1765854810016,8.44924779,126.3,126.26,16.59989768]
[1765854810221,8.44924779,126.29,126.25,8.24066415]
[1765854810513,8.44924779,126.29,126.26,8.68]
[1765854810705,0.69,126.29,126.26,8.68]
[1765854810888,8.44924779,126.29,126.26,8.68]
[1765854811085,0.69,126.29,126.26,8.68]
[1765854811305,16.36739396,126.3,126.26,16.92001212]
[1765854811608,0.69,126.29,126.26,16.60001212]
[1765854812814,16.33653867,126.31,126.27,0.32]
[1765854813308,0.66,126.3,126.27,0.32]
[1765854813490,11.47162421,126.31,126.27,0.32]
[1765854813914,11.47162421,126.31,126.27,8.23922171]
[1765854814214,0.66,126.3,126.27,7.91922171]
[1765854814778,0.66,126.3,126.27,69.81922171]
[1765854814978,0.66,126.3,126.27,70.13922171]
[1765854815599,0.66,126.3,126.27,69.81922171]
[1765854815806,0.66,126.3,126.27,70.13922171]
[1765854816211,0.66,126.3,126.27,69.81922171]
[1765854816709,8.57786628,126.3,126.27,61.9]
[1765854816905,11.47219961,126.3,126.27,61.9]
[1765854817087,11.47219961,126.3,126.27,69.81952914]
[1765854817286,8.57786628,126.3,126.27,69.81952914]
[1765854817624,16.33139138,126.3,126.27,69.81952914]
[1765854817816,16.33139138,126.3,126.27,61.9]
[1765854818518,0.66,126.3,126.27,70.1392787]
[1765854819024,7.91702953,126.31,126.27,70.1392787]
[1765854819192,16.33055463,126.31,126.27,70.1392787]
[1765854820020,27.54510743,126.32,126.27,69.8192787]
[1765854820193,7.7535251,126.32,126.28,0.32]
[1765854820389,0.66,126.32,126.29,8.68]
[1765854820626,7.7535251,126.31,126.29,8.68]
[1765854820918,8.4135251,126.31,126.29,8.68]
[1765854821627,16.32946631,126.33,126.29,16.91826945]
[1765854821989,16.32946631,126.33,126.29,78.81826945]
[1765854822386,8.57594121,126.33,126.29,78.81826945]
[1765854822627,16.32946631,126.33,126.29,78.81826945]
[1765854822814,8.57594121,126.33,126.29,78.81826945]
[1765854823018,16.32946631,126.33,126.29,78.81826945]
[1765854823219,7.9146982,126.35,126.3,0.32]
[1765854823404,13.7070912,126.36,126.3,0.32]
[1765854823405,8.4135251,126.36,126.3,8.0735251]
[1765854823602,0.66,126.35,126.3,8.0735251]
[1765854823811,0.66,126.35,126.31,0.32]
[1765854824026,0.66,126.35,126.32,8.68]
[1765854824708,8.4135251,126.35,126.32,8.68]
[1765854825102,0.66,126.34,126.32,8.68]
[1765854825505,8.57524538,126.34,126.32,8.68]
[1765854825707,16.32877048,126.34,126.32,8.68]
[1765854826329,8.57524538,126.34,126.32,8.68]
[1765854826533,16.32877048,126.34,126.32,8.68]
[1765854827331,16.32824564,126.35,126.32,8.68]
[1765854827501,7.7535251,126.34,126.32,8.68]
[1765854827697,8.4135251,126.34,126.32,8.68]
[1765854828305,8.4135251,126.33,126.29,7.91811043]
[1765854828631,8.4135251,126.33,126.27,19.79834675]
[1765854828632,0.66,126.33,126.3,8.68]
[1765854828814,8.4135251,126.32,126.3,8.68]
[1765854829229,15.67031975,126.32,126.3,8.68]
[1765854829416,0.66,126.31,126.3,8.68]
[1765854830840,0.66,126.31,126.28,8.68]
[1765854830841,8.57709493,126.31,126.28,8.68]
[1765854831004,7.7535251,126.3,126.28,8.68]
[1765854831513,8.4135251,126.29,126.28,8.68]
[1765854832501,0.66,126.29,126.28,8.68]
[1765854833126,16.33180841,126.29,126.28,8.68]
[1765854834306,16.33180841,126.29,126.24,7.92116041]
[1765854834504,7.7535251,126.28,126.25,8.68]
[1765854834722,8.4135251,126.28,126.25,8.68]
[1765854836229,16.33259179,126.28,126.25,8.68]
[1765854836939,15.67193024,126.29,126.25,16.92047677]
[1765854837114,16.33193024,126.29,126.25,16.92047677]
[1765854838133,8.57840514,126.29,126.25,16.92047677]
[1765854838332,8.57840514,126.29,126.26,0.32]
[1765854838510,15.67134164,126.3,126.26,8.23985725]
[1765854838711,8.57781654,126.3,126.26,8.23985725]
[1765854839012,16.33134164,126.3,126.26,8.23985725]
[1765854839420,11.47267993,126.3,126.26,8.23985725]
[1765854839628,3.55486339,126.29,126.26,7.91985725]
[1765854840210,2.89486339,126.29,126.25,16.92059047]
[1765854840537,0.66,126.28,126.25,16.92059047]
[1765854840836,11.47340209,126.29,126.25,16.92059047]
[1765854841334,8.5785387,126.29,126.25,16.92059047]
[1765854841539,11.47340209,126.29,126.25,16.92059047]
[1765854842735,8.5785387,126.29,126.25,16.92059047]
[1765854842934,11.47340209,126.29,126.25,16.92059047]
[1765854843339,7.91827936,126.3,126.26,0.32]
[1765854843530,2.89486339,126.29,126.25,78.50059047]
[1765854843837,2.89486339,126.28,126.25,78.50059047]
[1765854844139,3.60486339,126.28,126.25,78.50059047]
[1765854844340,0.71,126.27,126.25,78.50059047]
[1765854844545,3.60486339,126.28,126.25,70.58]
[1765854844743,2.89486339,126.26,126.21,7.92298127]
[1765854845047,0.71,126.27,126.22,8.68]
[1765854845257,0.71,126.26,126.22,8.68]
[1765854845454,2.89486339,126.24,126.22,16.60262743]
[1765854845631,2.89486339,126.24,126.22,8.68]
[1765854846226,19.79648372,126.29,126.23,0.32]
[1765854846542,3.60486339,126.27,126.23,0.32]
[1765854846742,3.60486339,126.27,126.22,16.60237434]
[1765854846923,3.60486339,126.26,126.22,36.72906107]
[1765854847440,3.60486339,126.26,126.22,36.40906107]
[1765854847638,3.60486339,126.26,126.23,0.32]
[1765854847823,3.60486339,126.26,126.22,36.40906107]
[1765854848023,3.60486339,126.26,126.22,36.72906107]
[1765854848219,8.63017033,126.26,126.22,36.72906107]
[1765854848421,3.60486339,126.26,126.22,36.72906107]
[1765854849459,11.52505672,126.26,126.22,16.92237434]
[1765854850421,3.60486339,126.25,126.22,78.82237434]
[1765854850615,2.89486339,126.25,126.22,78.82237434]
[1765854851048,2.89712171,126.25,126.22,78.82237434]
[1765854851550,11.52731504,126.26,126.22,78.82237434]
[1765854851855,8.63019333,126.26,126.22,78.82237434]
[1765854852025,2.89712171,126.25,126.22,78.82237434]
[1765854852835,0.71,126.25,126.22,78.82237434]
[1765854853158,3.60712171,126.25,126.22,78.82237434]
[1765854854235,0.71,126.24,126.22,78.50237434]
[1765854854868,0.71,126.24,126.19,19.8107883]
[1765854854869,3.60712171,126.24,126.19,19.8107883]
[1765854855063,8.63181024,126.24,126.19,20.1307883]
[1765854855271,11.52893195,126.24,126.2,9.0]
[1765854855635,10.81893195,126.24,126.2,9.0]
[1765854855960,0.71,126.23,126.2,9.0]
[1765854856459,0.71,126.23,126.21,7.92318344]
[1765854856762,0.71,126.23,126.22,8.68]
[1765854856957,3.60712171,126.23,126.22,8.68]
[1765854857549,11.52916876,126.23,126.22,8.68]
[1765854858772,11.52916876,126.23,126.17,8.02581437]
[1765854859068,2.89712171,126.2,126.19,8.68]
[1765854859441,3.60712171,126.2,126.19,8.68]
[1765854861485,5.24084309,126.2,126.19,8.68]
[1765854863574,13.16477335,126.2,126.19,8.68]
[1765854863991,13.16477335,126.2,126.17,8.78]
[1765854864149,5.24084309,126.19,126.17,8.78]
[1765854864353,4.53084309,126.19,126.17,8.78]
[1765854864692,0.71,126.19,126.17,8.78]
[1765854864858,13.16548286,126.19,126.17,8.78]
[1765854866051,8.63463977,126.19,126.17,8.78]
[1765854866247,13.16548286,126.19,126.17,8.78]
[1765854866451,5.24084309,126.18,126.17,8.78]
[1765854867267,4.53084309,126.19,126.17,8.78]
[1765854867708,5.24084309,126.19,126.17,8.78]
[1765854868557,13.16560272,126.19,126.17,8.78]
[1765854868954,4.53084309,126.18,126.17,8.78]
[1765854870067,5.24084309,126.18,126.17,8.78]
[1765854870674,0.71,126.18,126.17,8.78]
[1765854870876,5.24084309,126.18,126.17,8.78]
[1765854871585,8.63475963,126.19,126.17,8.78]
[1765854871889,4.53084309,126.19,126.17,8.78]
[1765854872062,5.25084309,126.19,126.17,8.78]
[1765854872794,0.72,126.19,126.17,8.78]
[1765854872994,5.25084309,126.19,126.17,8.78]
[1765854874293,0.72,126.19,126.17,8.78]
[1765854874588,19.80910044,126.21,126.17,16.70570134]
[1765854874589,5.25084309,126.21,126.17,16.70570134]
[1765854874781,8.64207055,126.23,126.19,7.9245582]
[1765854874983,13.17291364,126.23,126.2,8.7]
[1765854875392,13.17291364,126.23,126.2,9.02]
[1765854875590,13.17291364,126.23,126.2,8.7]
[1765854877098,8.64207055,126.23,126.2,8.7]
[1765854877280,13.17291364,126.23,126.2,8.7]
[1765854877666,12.4525028,126.24,126.2,16.62375221]
[1765854877970,13.1725028,126.24,126.2,16.94375221]
[1765854878168,4.53084309,126.25,126.21,0.32]
[1765854878500,5.25084309,126.25,126.21,0.32]
[1765854879388,13.17180375,126.25,126.21,8.24305014]
[1765854879888,8.64096066,126.25,126.21,8.24305014]
[1765854880089,13.17180375,126.25,126.21,8.24305014]
[1765854880491,0.72,126.24,126.21,7.92305014]
[1765854880698,13.17231695,126.24,126.21,8.24305014]
[1765854880872,8.64147386,126.24,126.21,8.24305014]
[1765854881074,5.25084309,126.24,126.21,8.24305014]
[1765854881287,12.45188891,126.25,126.21,8.24305014]
[1765854881591,4.53084309,126.25,126.22,0.32]
[1765854881772,4.53084309,126.25,126.23,8.68]
[1765854881972,5.25084309,126.25,126.23,8.68]
[1765854882518,13.17128132,126.26,126.23,8.68]
[1765854882798,0.72,126.25,126.23,8.68]
[1765854883097,13.17128132,126.26,126.23,9.0]
[1765854883400,7.92043823,126.26,126.23,9.0]
[1765854883577,8.64043823,126.26,126.23,9.0]
[1765854884604,17.57793429,126.24,126.18,20.13203827]
[1765854884767,4.53084309,126.21,126.19,8.68]
[1765854884973,4.53084309,126.22,126.19,16.60420234]
[1765854885475,5.25084309,126.22,126.19,16.60420234]
[1765854885876,5.25084309,126.22,126.19,16.92420234]
[1765854886078,4.53084309,126.21,126.19,16.60420234]
[1765854886298,4.53084309,126.21,126.19,16.92420234]
[1765854886684,5.25084309,126.22,126.19,16.92420234]
[1765854888387,13.1735618,126.22,126.19,16.92420234]
[1765854888586,13.1735618,126.22,126.19,9.0]
[1765854888987,13.1735618,126.22,126.19,8.68]
[1765854890481,8.64271871,126.22,126.19,8.68]
[1765854890686,13.1735618,126.22,126.19,8.68]
[1765854891211,4.53084309,126.21,126.19,8.68]
[1765854891387,5.25084309,126.21,126.19,8.68]
[1765854892204,0.72,126.21,126.19,8.68]
[1765854892594,0.72,126.2,126.18,70.58]
[1765854892803,5.25084309,126.2,126.18,70.58]
[1765854893000,4.53084309,126.21,126.19,0.32]
[1765854893206,4.53084309,126.21,126.18,70.9]
[1765854893383,12.45430007,126.21,126.18,78.82506831]
[1765854893705,12.45430007,126.21,126.18,70.58]
[1765854893891,12.45430007,126.21,126.18,70.9]
[1765854894296,13.17430007,126.21,126.18,70.9]
[1765854894484,4.53084309,126.2,126.18,70.9]
[1765854894675,4.53084309,126.2,126.18,70.58]
[1765854894879,0.72,126.2,126.18,70.58]
[1765854895309,12.45480603,126.2,126.18,70.58]
[1765854896106,12.45480603,126.2,126.18,70.9]
[1765854896285,7.92396294,126.2,126.18,70.9]
[1765854897608,12.45424875,126.21,126.18,70.58]
[1765854897778,7.92340566,126.21,126.18,70.9]
[1765854897978,8.64340566,126.21,126.18,70.9]
[1765854898287,7.92340566,126.21,126.18,70.58]
[1765854898479,4.53084309,126.19,126.18,8.68]
[1765854898904,5.25084309,126.2,126.18,8.68]
[1765854899105,5.25084309,126.2,126.17,0.1]
[1765854899106,4.53084309,126.19,126.17,0.1]
[1765854899309,5.25084309,126.19,126.18,8.68]
[1765854899911,4.53084309,126.19,126.18,8.68]
[1765854900095,12.45522808,126.2,126.18,8.68]
[1765854900284,13.17522808,126.2,126.18,8.68]
[1765854901711,5.25084309,126.19,126.18,8.68]
[1765854901899,0.72,126.19,126.18,8.68]
[1765854902093,5.25084309,126.19,126.18,8.68]
[1765854902293,5.25084309,126.19,126.17,0.1]
[1765854902514,9.73168618,126.18,126.17,0.1]
[1765854902737,18.5416311,126.18,126.14,0.1]
[1765854902887,4.53084309,126.15,126.14,0.1]
[1765854903415,5.20084309,126.15,126.14,0.1]
[1765854903811,20.48492382,126.17,126.14,0.1]
[1765854904014,8.68,126.19,126.14,0.52]
[1765854904204,8.59340082,126.21,126.14,5.05084309]
[1765854904409,4.53084309,126.2,126.14,5.05084309]
[1765854904720,5.20084309,126.2,126.15,0.42]
[1765854904927,5.20084309,126.2,126.16,8.7]
[1765854905315,4.53084309,126.19,126.16,9.12]
[1765854905817,4.53084309,126.19,126.16,17.0462869]
[1765854906202,5.20084309,126.19,126.16,17.0462869]
[1765854907306,4.53084309,126.19,126.16,17.0462869]
[1765854909322,5.20084309,126.19,126.16,16.6262869]
[1765854909492,5.20084309,126.19,126.16,17.0462869]
[1765854910625,4.53084309,126.2,126.16,16.6262869]
[1765854910831,4.53084309,126.2,126.17,0.42]
[1765854910832,5.20084309,126.2,126.17,0.42]
[1765854911214,5.20084309,126.2,126.17,8.34568364]
[1765854911409,0.67,126.2,126.17,8.34568364]
[1765854911716,13.12441489,126.21,126.18,0.42]
[1765854911920,12.45441489,126.21,126.19,8.7]
[1765854912133,5.20084309,126.2,126.19,8.7]
[1765854912312,0.67,126.2,126.19,8.7]
[1765854912625,5.20084309,126.2,126.19,8.7]
[1765854913124,13.12477335,126.2,126.19,8.7]
[1765854913818,8.59393026,126.2,126.19,8.7]
[1765854913997,13.12477335,126.2,126.19,8.7]
[1765854914323,8.59393026,126.2,126.19,8.7]
[1765854914528,13.12477335,126.2,126.19,8.7]
[1765854915113,13.12477335,126.2,126.16,8.34588833]
[1765854915315,13.12477335,126.2,126.18,8.7]
[1765854915514,4.53084309,126.19,126.18,8.7]
[1765854915712,5.20084309,126.19,126.18,8.7]
[1765854916414,5.20097968,126.19,126.18,8.7]
[1765854916814,13.12553788,126.19,126.18,8.7]
[1765854919305,19.80945769,126.21,126.18,17.04508257]
[1765854919506,13.12365437,126.22,126.18,17.04508257]
[1765854920038,0.67,126.21,126.18,17.04508257]
[1765854920210,5.20097968,126.21,126.18,9.12]
[1765854920412,13.12443174,126.21,126.18,9.12]
[1765854920833,0.67,126.21,126.18,17.04488069]
[1765854921111,13.12441722,126.21,126.18,8.7]
[1765854921641,8.59343754,126.21,126.18,9.12]
[1765854921940,11.49269581,126.21,126.18,71.02]
[1765854923237,7.9226925,126.22,126.19,0.42]
[1765854923809,11.49195077,126.22,126.19,0.42]
[1765854924432,2.89925827,126.23,126.19,62.32]
[1765854924637,3.56925827,126.23,126.19,62.32]
[1765854924817,2.89925827,126.21,126.19,61.9]
[1765854925352,3.56925827,126.21,126.2,8.7]
[1765854925637,2.89925827,126.21,126.19,61.9]
[1765854925941,22.70280706,126.24,126.2,8.7]
[1765854925942,8.59229795,126.23,126.2,8.7]
[1765854926440,3.56925827,126.22,126.21,8.7]
[1765854927311,8.59267469,126.22,126.19,61.9]
[1765854927516,3.56925827,126.21,126.2,8.7]
[1765854930223,0.67,126.21,126.2,8.7]
[1765854930441,3.56925827,126.21,126.2,8.7]
[1765854931639,10.82193296,126.22,126.2,8.7]
[1765854931841,3.56925827,126.21,126.2,8.7]
[1765854932140,0.67,126.21,126.2,8.7]
[1765854932343,3.56925827,126.21,126.2,8.7]
[1765854932526,2.89925827,126.21,126.2,8.7]
[1765854932744,7.92267469,126.22,126.2,8.7]
[1765854932925,2.89925827,126.21,126.2,8.7]
[1765854933146,3.58925827,126.21,126.2,8.7]
[1765854933347,8.61267469,126.22,126.2,8.7]
[1765854933544,11.51193296,126.22,126.2,8.7]
[1765854935259,11.51193296,126.22,126.19,0.42]
[1765854935420,8.61267469,126.22,126.21,8.7]
[1765854935615,11.51193296,126.22,126.21,8.7]
[1765854936140,7.92164599,126.24,126.21,9.12]
[1765854936353,8.61164599,126.24,126.21,9.12]
[1765854936558,2.89925827,126.22,126.21,8.7]
[1765854938759,0.69,126.23,126.21,8.68]
[1765854938965,3.58925827,126.23,126.21,8.68]
[1765854939738,2.89925827,126.22,126.21,8.68]
[1765854940838,11.51204141,126.22,126.21,8.68]
[1765854941750,3.58925827,126.22,126.21,8.68]
[1765854943566,3.58925827,126.22,126.2,61.9]
[1765854943767,0.69,126.22,126.21,8.68]
[1765854944956,11.51193296,126.22,126.21,8.68]
[1765854945850,8.61267469,126.22,126.21,8.68]
[1765854946161,11.51193296,126.22,126.21,8.68]
[1765854947163,19.80438198,126.24,126.19,70.24451317]
[1765854947348,2.89925827,126.22,126.21,8.68]
[1765854947543,2.89925827,126.22,126.2,0.42]
[1765854947759,2.89925827,126.22,126.21,8.68]
[1765854947943,3.58925827,126.23,126.21,8.68]
[1765854948262,2.89925827,126.27,126.22,3.31925827]
[1765854948472,2.89925827,126.27,126.23,8.68]
[1765854948647,0.69,126.26,126.21,62.32]
[1765854948966,2.89925827,126.22,126.19,7.92451317]
[1765854949160,2.89925827,126.22,126.2,8.68]
[1765854949363,2.89925827,126.22,126.21,8.68]
[1765854949746,8.61218955,126.23,126.21,8.68]
[1765854949962,2.89925827,126.22,126.21,8.68]
[1765854951600,7.92168925,126.24,126.21,9.1]
[1765854951875,2.89925827,126.23,126.21,9.1]
[1765854952871,3.58925827,126.24,126.21,17.02306291]
[1765854953477,8.61039069,126.26,126.22,8.34263647]
[1765854953669,3.58925827,126.26,126.22,8.34263647]
[1765854953870,0.69,126.25,126.22,8.34263647]
[1765854954172,2.89925827,126.24,126.21,16.60312178]
[1765854954673,3.58925827,126.24,126.21,17.02312178]
[1765854954861,3.58925827,126.24,126.21,8.34312178]
[1765854955057,0.69,126.24,126.21,8.34312178]
[1765854955296,3.58925827,126.24,126.22,8.68]
[1765854955866,2.89925827,126.23,126.21,8.34312178]
[1765854956070,2.89925827,126.23,126.22,8.68]
[1765854957163,3.58925827,126.24,126.22,8.68]
[1765854957456,3.58925827,126.24,126.22,16.60263866]
[1765854957645,7.92120786,126.25,126.22,16.60263866]
[1765854957646,3.58925827,126.25,126.22,17.02263866]
[1765854957848,0.69,126.25,126.22,17.02263866]
[1765854958079,2.89925827,126.25,126.22,16.60263866]
[1765854958386,3.58925827,126.25,126.22,16.60263866]
[1765854958681,0.69,126.24,126.22,16.60263866]
[1765854958974,3.58925827,126.25,126.22,17.02263866]
[1765854960383,3.58925827,126.25,126.22,78.92263866]
[1765854960797,2.89925827,126.24,126.22,70.58]
[1765854961077,2.89925827,126.24,126.2,19.8090253]
[1765854961078,0.69,126.24,126.23,8.68]
[1765854961262,10.82007907,126.25,126.23,8.68]
[1765854961460,11.51007907,126.25,126.23,8.68]
[1765854961679,3.58925827,126.25,126.23,8.68]
[1765854963264,2.89925827,126.25,126.23,8.68]
[1765854963453,0.69,126.24,126.23,8.68]
[1765854963656,3.58925827,126.24,126.23,8.68]
[1765854964163,2.89925827,126.24,126.23,8.68]
[1765854964585,0.69,126.24,126.23,8.68]
[1765854964759,3.58925827,126.24,126.23,8.68]
[1765854964987,0.69,126.24,126.23,8.68]
[1765854965295,11.5090831,126.27,126.23,9.1]
[1765854965455,11.5090831,126.27,126.24,0.42]
[1765854965776,10.8190831,126.27,126.24,0.42]
[1765854966081,10.8190831,126.27,126.23,8.68]
[1765854966082,11.5090831,126.27,126.23,8.68]
[1765854966257,11.5090831,126.27,126.24,8.34127901]
[1765854966453,10.8190831,126.27,126.23,16.60177449]
[1765854966659,0.69,126.26,126.23,17.02177449]
[1765854967683,11.5090831,126.27,126.24,0.42]
[1765854967887,0.69,126.27,126.24,8.3413678]
[1765854968288,3.58925827,126.27,126.24,8.3413678]
[1765854968578,0.69,126.27,126.24,8.3413678]
[1765854971295,3.58925827,126.27,126.24,8.3413678]
[1765854971779,0.69,126.27,126.24,8.3413678]
[1765854972170,0.69,126.27,126.24,70.2413678]
[1765854972869,11.50833661,126.28,126.25,0.42]
[1765854973172,11.50833661,126.28,126.26,8.68]
[1765854973572,27.40539767,126.3,126.27,0.42]
[1765854973767,0.69,126.29,126.26,17.02016357]
[1765854975909,3.58925827,126.29,126.26,17.02016357]